[Event "Early-Titled-Tuesday-Blitz-May-28-2024"]
[Site "Chess.com"]
[Date "2024.05.28"]
[Round "8"]
[White "rhungaski"]
[Black "emeli_chess"]
[Result "1-0"]
[WhiteElo "2585"]
[BlackElo "2437"]
[TimeControl "180+1"]
[EndTime "9:29:10 PDT"]
[Termination "rhungaski won by resignation"]

1. d4 {[%clk 0:03:00.9]} 1... Nf6 {[%clk 0:02:59.8]} 2. c4 {[%clk 0:03:00.6]}
2... e6 {[%clk 0:02:59.4]} 3. Nf3 {[%clk 0:02:58.2]} 3... d5 {[%clk 0:02:58.3]}
4. Nc3 {[%clk 0:02:57.6]} 4... Bb4 {[%clk 0:02:57.8]} 5. cxd5 {[%clk 0:02:55.7]}
5... exd5 {[%clk 0:02:57.7]} 6. Qa4+ {[%clk 0:02:52.7]} 6... Nc6 {[%clk
0:02:57.1]} 7. Bg5 {[%clk 0:02:53.6]} 7... h6 {[%clk 0:02:56.8]} 8. Bxf6 {[%clk
0:02:53.7]} 8... Qxf6 {[%clk 0:02:57.1]} 9. e3 {[%clk 0:02:54.6]} 9... O-O
{[%clk 0:02:56.5]} 10. Be2 {[%clk 0:02:55.1]} 10... Be6 {[%clk 0:02:55]} 11. O-O
{[%clk 0:02:55.5]} 11... a6 {[%clk 0:02:52.8]} 12. Rfc1 {[%clk 0:02:55.6]} 12...
Bd6 {[%clk 0:02:50.2]} 13. Qd1 {[%clk 0:02:56.2]} 13... Ne7 {[%clk 0:02:45.5]}
14. Na4 {[%clk 0:02:54.9]} 14... b6 {[%clk 0:02:37.6]} 15. b4 {[%clk 0:02:55.2]}
15... Rfe8 {[%clk 0:02:20.6]} 16. Nb2 {[%clk 0:02:51.5]} 16... g5 {[%clk
0:02:13.4]} 17. Nd3 {[%clk 0:02:51.2]} 17... Ng6 {[%clk 0:02:12.5]} 18. a4
{[%clk 0:02:46]} 18... g4 {[%clk 0:02:12]} 19. Nfe5 {[%clk 0:02:46.2]} 19...
Nxe5 {[%clk 0:02:10.5]} 20. dxe5 {[%clk 0:02:46.3]} 20... Bxe5 {[%clk
0:02:10.9]} 21. Nxe5 {[%clk 0:02:45.5]} 21... Qxe5 {[%clk 0:02:11.2]} 22. Bxg4
{[%clk 0:02:46.1]} 22... Kh8 {[%clk 0:02:05.5]} 23. Bf3 {[%clk 0:02:41.9]} 23...
Rg8 {[%clk 0:02:02.4]} 24. Qd4 {[%clk 0:02:39.9]} 24... Qxd4 {[%clk 0:01:57.8]}
25. exd4 {[%clk 0:02:40.8]} 25... Ra7 {[%clk 0:01:44.2]} 26. a5 {[%clk
0:02:38.9]} 26... b5 {[%clk 0:01:38.1]} 27. Rc6 {[%clk 0:02:37.9]} 27... Bd7
{[%clk 0:01:22.4]} 28. Rxh6+ {[%clk 0:02:32.2]} 28... Kg7 {[%clk 0:01:22.6]} 29.
Rh5 {[%clk 0:02:19.1]} 29... c6 {[%clk 0:01:22.6]} 30. Re5 {[%clk 0:02:19.2]}
30... Be6 {[%clk 0:01:19.4]} 31. Rae1 {[%clk 0:02:19.8]} 31... Kf6 {[%clk
0:01:18.1]} 32. g3 {[%clk 0:02:12.3]} 32... Ke7 {[%clk 0:01:16]} 33. Bg2 {[%clk
0:02:11.6]} 33... Kd6 {[%clk 0:01:16.1]} 34. f4 {[%clk 0:02:11.2]} 34... Rh8
{[%clk 0:01:07.6]} 35. h4 {[%clk 0:01:59.6]} 35... Raa8 {[%clk 0:01:04.9]} 36.
Kf2 {[%clk 0:01:57.4]} 36... Rag8 {[%clk 0:01:02.5]} 37. Rg5 {[%clk 0:01:54.4]}
37... f6 {[%clk 0:00:58.4]} 38. Rxg8 {[%clk 0:01:53.5]} 38... Rxg8 {[%clk
0:00:58.7]} 39. Bf3 {[%clk 0:01:52.5]} 39... Bg4 {[%clk 0:00:54.2]} 40. Bxg4
{[%clk 0:01:49.7]} 40... Rxg4 {[%clk 0:00:54.1]} 41. Re8 {[%clk 0:01:50.4]}
41... Rg7 {[%clk 0:00:46.3]} 42. Kf3 {[%clk 0:01:49.8]} 42... f5 {[%clk
0:00:43.4]} 43. Re5 {[%clk 0:01:37.9]} 43... Rf7 {[%clk 0:00:42]} 44. h5 {[%clk
0:01:38.1]} 44... Rf6 {[%clk 0:00:40.8]} 45. Kg2 {[%clk 0:01:38]} 45... Rf7
{[%clk 0:00:26]} 46. Kh3 {[%clk 0:01:37.9]} 46... c5 {[%clk 0:00:25.2]} 47.
dxc5+ {[%clk 0:01:32.6]} 47... Kc6 {[%clk 0:00:24.1]} 48. Re6+ {[%clk
0:01:32.7]} 48... Kc7 {[%clk 0:00:24.1]} 49. Rxa6 {[%clk 0:01:31.3]} 49... d4
{[%clk 0:00:21.8]} 50. Ra7+ {[%clk 0:01:28]} 1-0

[Event "Early-Titled-Tuesday-Blitz-May-28-2024"]
[Site "Chess.com"]
[Date "2024.05.28"]
[Round "8"]
[White "monomita"]
[Black "djano"]
[Result "1-0"]
[WhiteElo "2738"]
[BlackElo "2589"]
[TimeControl "180+1"]
[EndTime "9:29:14 PDT"]
[Termination "monomita won by resignation"]

1. d4 {[%clk 0:03:00.9]} 1... Nf6 {[%clk 0:02:59.8]} 2. c4 {[%clk 0:03:01]} 2...
e6 {[%clk 0:02:59.4]} 3. g3 {[%clk 0:03:01.2]} 3... c5 {[%clk 0:02:58.1]} 4. d5
{[%clk 0:03:00.6]} 4... exd5 {[%clk 0:02:55.2]} 5. cxd5 {[%clk 0:03:01.5]} 5...
d6 {[%clk 0:02:55.4]} 6. Bg2 {[%clk 0:03:01.6]} 6... g6 {[%clk 0:02:54.3]} 7.
Nc3 {[%clk 0:03:02.5]} 7... Bg7 {[%clk 0:02:54.1]} 8. Nf3 {[%clk 0:03:03.4]}
8... O-O {[%clk 0:02:54.7]} 9. O-O {[%clk 0:03:04.3]} 9... a6 {[%clk 0:02:54.6]}
10. Bf4 {[%clk 0:03:05.2]} 10... b5 {[%clk 0:02:53.6]} 11. Nd2 {[%clk
0:03:01.3]} 11... Re8 {[%clk 0:02:48.8]} 12. Nde4 {[%clk 0:02:55.6]} 12... Nxe4
{[%clk 0:02:40]} 13. Nxe4 {[%clk 0:02:56.5]} 13... Rxe4 {[%clk 0:02:37.3]} 14.
Bxe4 {[%clk 0:02:56.4]} 14... Bxb2 {[%clk 0:02:37.6]} 15. Rb1 {[%clk 0:02:51.3]}
15... Bf6 {[%clk 0:02:36.3]} 16. Qd2 {[%clk 0:02:43.3]} 16... Ra7 {[%clk
0:02:33.8]} 17. Bg2 {[%clk 0:02:34.9]} 17... b4 {[%clk 0:02:31]} 18. e4 {[%clk
0:02:33.7]} 18... Qe7 {[%clk 0:02:25.7]} 19. Be3 {[%clk 0:02:20.9]} 19... Nd7
{[%clk 0:02:21.8]} 20. Rxb4 {[%clk 0:02:16.1]} 20... cxb4 {[%clk 0:02:03]} 21.
Bxa7 {[%clk 0:02:15.5]} 21... Bc3 {[%clk 0:01:48.4]} 22. Qe2 {[%clk 0:02:05.9]}
22... Ne5 {[%clk 0:01:43.2]} 23. Be3 {[%clk 0:02:04.3]} 23... Qc7 {[%clk
0:01:26.8]} 24. Rc1 {[%clk 0:01:56.8]} 24... Qa5 {[%clk 0:01:19.2]} 25. h3
{[%clk 0:01:45.4]} 25... Bd7 {[%clk 0:01:17.2]} 26. Bf1 {[%clk 0:01:25.6]} 26...
Bb5 {[%clk 0:00:58.2]} 27. Qc2 {[%clk 0:01:25.4]} 27... Ba4 {[%clk 0:00:53.3]}
28. Qb1 {[%clk 0:01:23.1]} 28... g5 {[%clk 0:00:44.3]} 29. Kg2 {[%clk
0:01:19.2]} 29... h6 {[%clk 0:00:43.4]} 30. f4 {[%clk 0:01:16.2]} 30... Ng6
{[%clk 0:00:43.6]} 31. fxg5 {[%clk 0:01:14.1]} 31... hxg5 {[%clk 0:00:44.5]} 32.
Bxg5 {[%clk 0:01:13.3]} 32... Ne5 {[%clk 0:00:40.5]} 33. Bf6 {[%clk 0:01:08.6]}
33... Bd7 {[%clk 0:00:18.1]} 34. Rxc3 {[%clk 0:01:01.9]} 34... bxc3 {[%clk
0:00:17.4]} 35. Qb8+ {[%clk 0:01:01.7]} 35... Kh7 {[%clk 0:00:16.8]} 36. Qh8+
{[%clk 0:01:01.7]} 36... Kg6 {[%clk 0:00:17.2]} 37. Qg7+ {[%clk 0:01:02.3]} 1-0

[Event "Early-Titled-Tuesday-Blitz-May-28-2024"]
[Site "Chess.com"]
[Date "2024.05.28"]
[Round "8"]
[White "David_Arutinian"]
[Black "Nf3c5"]
[Result "1-0"]
[WhiteElo "2822"]
[BlackElo "2565"]
[TimeControl "180+1"]
[EndTime "9:29:16 PDT"]
[Termination "David_Arutinian won on time"]

1. Nf3 {[%clk 0:03:00.9]} 1... f5 {[%clk 0:02:55.8]} 2. c4 {[%clk 0:02:59.9]}
2... e6 {[%clk 0:02:56]} 3. Nc3 {[%clk 0:02:59.7]} 3... Nf6 {[%clk 0:02:55.9]}
4. d3 {[%clk 0:03:00.3]} 4... Nc6 {[%clk 0:02:51.9]} 5. e4 {[%clk 0:03:00.1]}
5... fxe4 {[%clk 0:02:50.3]} 6. dxe4 {[%clk 0:03:00.1]} 6... e5 {[%clk
0:02:50.9]} 7. Bd3 {[%clk 0:02:58]} 7... Bb4 {[%clk 0:02:45.5]} 8. Bd2 {[%clk
0:02:55.8]} 8... O-O {[%clk 0:02:34.9]} 9. O-O {[%clk 0:02:55.2]} 9... Bxc3
{[%clk 0:02:22.8]} 10. Bxc3 {[%clk 0:02:54.9]} 10... d6 {[%clk 0:02:23.5]} 11.
Nd2 {[%clk 0:02:53.7]} 11... a5 {[%clk 0:02:19.5]} 12. f3 {[%clk 0:02:44.3]}
12... Nh5 {[%clk 0:02:03.7]} 13. Rf2 {[%clk 0:02:35.1]} 13... Nf4 {[%clk
0:02:00]} 14. Nf1 {[%clk 0:02:35.7]} 14... b6 {[%clk 0:01:51.3]} 15. Bd2 {[%clk
0:02:34.1]} 15... Nxd3 {[%clk 0:01:43.6]} 16. Re2 {[%clk 0:02:34.1]} 16... Nf4
{[%clk 0:01:42.6]} 17. Bxf4 {[%clk 0:02:33.5]} 17... Rxf4 {[%clk 0:01:42.4]} 18.
Qd5+ {[%clk 0:02:33.5]} 18... Rf7 {[%clk 0:01:33.7]} 19. Qxc6 {[%clk 0:02:33.7]}
19... Be6 {[%clk 0:01:32.6]} 20. Rc1 {[%clk 0:02:29.1]} 20... Rc8 {[%clk
0:01:14.6]} 21. Rc3 {[%clk 0:02:28.5]} 21... Qg5 {[%clk 0:01:12.5]} 22. Qa4
{[%clk 0:02:27.7]} 22... Rcf8 {[%clk 0:01:11.3]} 23. Rf2 {[%clk 0:02:22.4]}
23... h5 {[%clk 0:01:06.4]} 24. Qd1 {[%clk 0:02:17.9]} 24... Qh6 {[%clk
0:01:00.1]} 25. Qd2 {[%clk 0:02:11.1]} 25... Qf6 {[%clk 0:00:57.3]} 26. Ne3
{[%clk 0:02:10.2]} 26... g5 {[%clk 0:00:57.9]} 27. Nd5 {[%clk 0:02:05.1]} 27...
Qg6 {[%clk 0:00:57.1]} 28. Qe3 {[%clk 0:01:58.9]} 28... Kh7 {[%clk 0:00:56.2]}
29. Rcc2 {[%clk 0:01:55.7]} 29... Qg7 {[%clk 0:00:47.8]} 30. b3 {[%clk
0:01:55.3]} 30... Qg6 {[%clk 0:00:47.7]} 31. Rcd2 {[%clk 0:01:54.8]} 31... Qg7
{[%clk 0:00:46.8]} 32. Kf1 {[%clk 0:01:53.3]} 32... Qg6 {[%clk 0:00:47.2]} 33.
Ke1 {[%clk 0:01:53.3]} 33... Kg7 {[%clk 0:00:41.3]} 34. Kd1 {[%clk 0:01:53.3]}
34... g4 {[%clk 0:00:40.2]} 35. Kc2 {[%clk 0:01:50.1]} 35... h4 {[%clk
0:00:36.6]} 36. Kb2 {[%clk 0:01:46.2]} 36... g3 {[%clk 0:00:31.6]} 37. hxg3
{[%clk 0:01:46]} 37... hxg3 {[%clk 0:00:32.5]} 38. Rfe2 {[%clk 0:01:44.8]} 38...
Bxd5 {[%clk 0:00:27.5]} 39. cxd5 {[%clk 0:01:44.4]} 39... Qh6 {[%clk 0:00:28.1]}
40. Qd3 {[%clk 0:01:44.2]} 40... Qf4 {[%clk 0:00:24.9]} 41. Rc2 {[%clk
0:01:44.4]} 41... Rh8 {[%clk 0:00:22.3]} 42. Rc3 {[%clk 0:01:40.7]} 42... Rh7
{[%clk 0:00:20.2]} 43. Rec2 {[%clk 0:01:40.8]} 43... Kg6 {[%clk 0:00:20.9]} 44.
Qa6 {[%clk 0:01:39.7]} 44... Rh2 {[%clk 0:00:15.8]} 45. Qc8 {[%clk 0:01:39.2]}
45... Qg5 {[%clk 0:00:07.5]} 46. Rxc7 {[%clk 0:01:34.6]} 46... Rxc7 {[%clk
0:00:06.7]} 47. Qxc7 {[%clk 0:01:34.6]} 47... Qe3 {[%clk 0:00:05.6]} 48. Qxd6+
{[%clk 0:01:33.9]} 1-0

[Event "Early-Titled-Tuesday-Blitz-May-28-2024"]
[Site "Chess.com"]
[Date "2024.05.28"]
[Round "8"]
[White "GOGIEFF"]
[Black "SaraBlackPanther"]
[Result "1-0"]
[WhiteElo "3016"]
[BlackElo "2766"]
[TimeControl "180+1"]
[EndTime "9:29:18 PDT"]
[Termination "GOGIEFF won on time"]

1. c4 {[%clk 0:03:00.9]} 1... Nf6 {[%clk 0:02:58.7]} 2. Nc3 {[%clk 0:03:00.2]}
2... g6 {[%clk 0:02:57.3]} 3. e4 {[%clk 0:02:59.1]} 3... d6 {[%clk 0:02:57.1]}
4. d4 {[%clk 0:02:59]} 4... Bg7 {[%clk 0:02:57.3]} 5. Be2 {[%clk 0:02:59.3]}
5... O-O {[%clk 0:02:57.7]} 6. Bg5 {[%clk 0:02:59.9]} 6... c5 {[%clk 0:02:54.2]}
7. d5 {[%clk 0:03:00.1]} 7... h6 {[%clk 0:02:45.1]} 8. Be3 {[%clk 0:02:58.8]}
8... e6 {[%clk 0:02:45.4]} 9. Nf3 {[%clk 0:02:58.9]} 9... exd5 {[%clk
0:02:44.9]} 10. cxd5 {[%clk 0:02:59.8]} 10... Bg4 {[%clk 0:02:42.5]} 11. O-O
{[%clk 0:02:56.3]} 11... Bxf3 {[%clk 0:02:37.2]} 12. Bxf3 {[%clk 0:02:57.2]}
12... Re8 {[%clk 0:02:33.5]} 13. Qc2 {[%clk 0:02:54.1]} 13... a6 {[%clk
0:02:29.5]} 14. a4 {[%clk 0:02:53.8]} 14... Nbd7 {[%clk 0:02:29.9]} 15. h3
{[%clk 0:02:52.7]} 15... c4 {[%clk 0:02:14.1]} 16. a5 {[%clk 0:02:47.1]} 16...
Qc7 {[%clk 0:02:10.6]} 17. Ra4 {[%clk 0:02:44.9]} 17... b5 {[%clk 0:01:56.4]}
18. axb6 {[%clk 0:02:41.6]} 18... Nxb6 {[%clk 0:01:56.9]} 19. Rb4 {[%clk
0:02:37.5]} 19... Nfd7 {[%clk 0:01:56.5]} 20. Ra1 {[%clk 0:02:31.1]} 20... Nc5
{[%clk 0:01:51.6]} 21. Be2 {[%clk 0:02:20.9]} 21... Qd8 {[%clk 0:01:21.2]} 22.
f3 {[%clk 0:02:04.9]} 22... f5 {[%clk 0:01:17.5]} 23. Bf2 {[%clk 0:01:54.7]}
23... fxe4 {[%clk 0:00:44]} 24. Nxe4 {[%clk 0:01:52.4]} 24... Rc8 {[%clk
0:00:42]} 25. Nxc5 {[%clk 0:01:41.5]} 25... dxc5 {[%clk 0:00:42.1]} 26. Rxc4
{[%clk 0:01:41.9]} 26... Nxc4 {[%clk 0:00:39.1]} 27. Bxc4 {[%clk 0:01:42.8]}
27... Rb8 {[%clk 0:00:12.1]} 28. Qxg6 {[%clk 0:01:33.1]} 28... Rb6 {[%clk
0:00:09.2]} 29. d6+ {[%clk 0:01:31.7]} 29... Kh8 {[%clk 0:00:09.3]} 30. Bd3
{[%clk 0:01:31.9]} 30... Kg8 {[%clk 0:00:08.7]} 31. Rxa6 {[%clk 0:01:23.3]}
31... Rxa6 {[%clk 0:00:06]} 32. Bxa6 {[%clk 0:01:24.2]} 32... Qd7 {[%clk
0:00:02.2]} 33. Bc4+ {[%clk 0:01:22.2]} 33... Kf8 {[%clk 0:00:01.9]} 34. Bxc5
{[%clk 0:01:16.8]} 34... Re1+ {[%clk 0:00:01]} 35. Kf2 {[%clk 0:01:16.7]} 35...
Rc1 {[%clk 0:00:01.7]} 36. Qf7+ {[%clk 0:01:14.5]} 36... Qxf7 {[%clk 0:00:01.5]}
37. d7+ {[%clk 0:01:15]} 1-0

[Event "Early-Titled-Tuesday-Blitz-May-28-2024"]
[Site "Chess.com"]
[Date "2024.05.28"]
[Round "8"]
[White "AldokhinIvan"]
[Black "balack95"]
[Result "1-0"]
[WhiteElo "2621"]
[BlackElo "2508"]
[TimeControl "180+1"]
[EndTime "9:29:18 PDT"]
[Termination "AldokhinIvan won by resignation"]

1. d4 {[%clk 0:03:00.6]} 1... Nf6 {[%clk 0:02:59.1]} 2. c4 {[%clk 0:02:59.6]}
2... e6 {[%clk 0:02:57.8]} 3. Nc3 {[%clk 0:02:59.7]} 3... Bb4 {[%clk 0:02:57.8]}
4. f3 {[%clk 0:02:59.9]} 4... c5 {[%clk 0:02:55.9]} 5. a3 {[%clk 0:03:00]} 5...
Ba5 {[%clk 0:02:54.7]} 6. e3 {[%clk 0:02:47.1]} 6... O-O {[%clk 0:02:53.7]} 7.
Bd3 {[%clk 0:02:39.6]} 7... cxd4 {[%clk 0:02:52]} 8. exd4 {[%clk 0:02:39.2]}
8... d5 {[%clk 0:02:52.9]} 9. c5 {[%clk 0:02:18.9]} 9... Nc6 {[%clk 0:02:48.6]}
10. Ne2 {[%clk 0:02:10.8]} 10... e5 {[%clk 0:02:47.4]} 11. dxe5 {[%clk
0:01:48.8]} 11... Nxe5 {[%clk 0:02:45.1]} 12. O-O {[%clk 0:01:48.3]} 12... h6
{[%clk 0:02:34.1]} 13. Bc2 {[%clk 0:01:37]} 13... Re8 {[%clk 0:02:32.4]} 14. b4
{[%clk 0:01:32.9]} 14... Bc7 {[%clk 0:02:31.4]} 15. Nd4 {[%clk 0:01:27]} 15...
Nc4 {[%clk 0:02:31.5]} 16. Qd3 {[%clk 0:01:23.7]} 16... a5 {[%clk 0:02:02.7]}
17. Rb1 {[%clk 0:00:54.3]} 17... axb4 {[%clk 0:02:02.1]} 18. axb4 {[%clk
0:00:54.2]} 18... Na3 {[%clk 0:01:55.3]} 19. Bxa3 {[%clk 0:00:44.6]} 19... Rxa3
{[%clk 0:01:56.2]} 20. Ndb5 {[%clk 0:00:44.3]} 20... Rxc3 {[%clk 0:01:44.6]} 21.
Qxc3 {[%clk 0:00:39.7]} 21... Be5 {[%clk 0:01:42.1]} 22. Qd3 {[%clk 0:00:36]}
22... b6 {[%clk 0:01:42]} 23. c6 {[%clk 0:00:33.1]} 23... Ba6 {[%clk 0:01:42.2]}
24. Rfe1 {[%clk 0:00:30.3]} 24... Qb8 {[%clk 0:01:24.4]} 25. f4 {[%clk
0:00:16.3]} 25... Bxf4 {[%clk 0:01:16.9]} 26. Rxe8+ {[%clk 0:00:15.9]} 26...
Qxe8 {[%clk 0:01:17.8]} 27. Ra1 {[%clk 0:00:15.8]} 27... Qe3+ {[%clk 0:01:16]}
28. Kh1 {[%clk 0:00:12.1]} 28... Bxb5 {[%clk 0:01:16.2]} 29. Qxb5 {[%clk
0:00:09.8]} 29... Bxh2 {[%clk 0:01:16.5]} 30. Ra8+ {[%clk 0:00:05.4]} 30... Ne8
{[%clk 0:01:16.6]} 31. Kxh2 {[%clk 0:00:04.4]} 31... Qe1 {[%clk 0:01:17.2]} 32.
Qd3 {[%clk 0:00:03.5]} 32... Qh4+ {[%clk 0:01:17.7]} 33. Qh3 {[%clk 0:00:04.1]}
33... Qf4+ {[%clk 0:01:18.3]} 34. Qg3 {[%clk 0:00:04.5]} 34... Qxg3+ {[%clk
0:01:13.8]} 35. Kxg3 {[%clk 0:00:04.1]} 35... Kf8 {[%clk 0:01:13]} 36. c7 {[%clk
0:00:04.4]} 36... Ke7 {[%clk 0:01:13.9]} 37. c8=Q {[%clk 0:00:04.7]} 1-0

[Event "Early-Titled-Tuesday-Blitz-May-28-2024"]
[Site "Chess.com"]
[Date "2024.05.28"]
[Round "8"]
[White "atbenina64"]
[Black "Tagir45"]
[Result "1-0"]
[WhiteElo "2791"]
[BlackElo "2635"]
[TimeControl "180+1"]
[EndTime "9:29:21 PDT"]
[Termination "atbenina64 won by checkmate"]

1. Nf3 {[%clk 0:03:00.9]} 1... d5 {[%clk 0:02:59]} 2. g3 {[%clk 0:03:01.3]} 2...
c5 {[%clk 0:02:58.8]} 3. Bg2 {[%clk 0:03:01.2]} 3... Nc6 {[%clk 0:02:57.7]} 4.
d4 {[%clk 0:03:01.5]} 4... cxd4 {[%clk 0:02:57.3]} 5. Nxd4 {[%clk 0:03:02.3]}
5... Nf6 {[%clk 0:02:56.2]} 6. O-O {[%clk 0:03:02]} 6... e5 {[%clk 0:02:50.5]}
7. Nxc6 {[%clk 0:03:02.3]} 7... bxc6 {[%clk 0:02:51.4]} 8. c4 {[%clk 0:03:03.2]}
8... Be7 {[%clk 0:02:49]} 9. cxd5 {[%clk 0:02:59.8]} 9... cxd5 {[%clk
0:02:48.5]} 10. Nc3 {[%clk 0:03:00.5]} 10... Be6 {[%clk 0:02:48.3]} 11. Bg5
{[%clk 0:02:57.1]} 11... d4 {[%clk 0:02:47]} 12. Bxa8 {[%clk 0:02:52.7]} 12...
Qxa8 {[%clk 0:02:46.6]} 13. Na4 {[%clk 0:02:36.9]} 13... Bh3 {[%clk 0:02:42.3]}
14. f3 {[%clk 0:02:37.2]} 14... Bxf1 {[%clk 0:02:41.4]} 15. Kxf1 {[%clk
0:02:30.8]} 15... Nd5 {[%clk 0:02:30.9]} 16. Bd2 {[%clk 0:02:28.1]} 16... O-O
{[%clk 0:02:29.5]} 17. Rc1 {[%clk 0:02:22]} 17... f5 {[%clk 0:02:20.5]} 18. Nc5
{[%clk 0:02:08.8]} 18... Rd8 {[%clk 0:01:00.2]} 19. Ne6 {[%clk 0:01:48.4]} 19...
Rd6 {[%clk 0:00:55.5]} 20. Nc7 {[%clk 0:01:48.6]} 20... Nxc7 {[%clk 0:00:54.1]}
21. Rxc7 {[%clk 0:01:49.5]} 21... Bf8 {[%clk 0:00:49.4]} 22. Qb3+ {[%clk
0:01:40.3]} 22... Kh8 {[%clk 0:00:39.2]} 23. Qc2 {[%clk 0:01:30]} 23... Rd8
{[%clk 0:00:36]} 24. Qxf5 {[%clk 0:01:28.7]} 24... d3 {[%clk 0:00:33.1]} 25.
exd3 {[%clk 0:01:23.8]} 25... Bd6 {[%clk 0:00:32.6]} 26. Rf7 {[%clk 0:01:20.4]}
26... Qd5 {[%clk 0:00:30.5]} 27. Bh6 {[%clk 0:01:14.3]} 27... Rg8 {[%clk
0:00:21.8]} 28. Rxa7 {[%clk 0:00:50.5]} 28... Bc5 {[%clk 0:00:14.7]} 29. Rd7
{[%clk 0:00:47.5]} 29... Qxa2 {[%clk 0:00:13.6]} 30. Bxg7+ {[%clk 0:00:45.7]}
30... Rxg7 {[%clk 0:00:12.8]} 31. Rd8+ {[%clk 0:00:46.5]} 31... Rg8 {[%clk
0:00:10.3]} 32. Qf6# {[%clk 0:00:46.5]} 1-0

[Event "Early-Titled-Tuesday-Blitz-May-28-2024"]
[Site "Chess.com"]
[Date "2024.05.28"]
[Round "8"]
[White "ManMish2"]
[Black "frankshar"]
[Result "1-0"]
[WhiteElo "2686"]
[BlackElo "2497"]
[TimeControl "180+1"]
[EndTime "9:29:21 PDT"]
[Termination "ManMish2 won by resignation"]

1. e4 {[%clk 0:03:00.9]} 1... c5 {[%clk 0:02:59.7]} 2. c3 {[%clk 0:03:00.4]}
2... d5 {[%clk 0:02:57.4]} 3. exd5 {[%clk 0:03:01.1]} 3... Qxd5 {[%clk
0:02:57.6]} 4. Nf3 {[%clk 0:03:00.9]} 4... Nc6 {[%clk 0:02:56.9]} 5. Na3 {[%clk
0:03:00.9]} 5... Bg4 {[%clk 0:02:39.8]} 6. Be2 {[%clk 0:02:59.7]} 6... Nf6
{[%clk 0:02:38.4]} 7. O-O {[%clk 0:02:58.4]} 7... e6 {[%clk 0:02:37.1]} 8. Nc2
{[%clk 0:02:57.6]} 8... Be7 {[%clk 0:02:28.2]} 9. Ne3 {[%clk 0:02:55.9]} 9...
Qd7 {[%clk 0:02:26.7]} 10. Nxg4 {[%clk 0:02:55.5]} 10... Nxg4 {[%clk 0:02:27.3]}
11. h3 {[%clk 0:02:56]} 11... Nf6 {[%clk 0:02:27]} 12. d3 {[%clk 0:02:53.7]}
12... O-O {[%clk 0:02:26.2]} 13. Be3 {[%clk 0:02:52.3]} 13... Nd5 {[%clk
0:02:26]} 14. Bd2 {[%clk 0:02:51.5]} 14... Bf6 {[%clk 0:02:21]} 15. Re1 {[%clk
0:02:49]} 15... a6 {[%clk 0:02:15.9]} 16. a4 {[%clk 0:02:47.6]} 16... b5 {[%clk
0:02:10.6]} 17. Bf1 {[%clk 0:02:45.2]} 17... Rab8 {[%clk 0:01:59.6]} 18. axb5
{[%clk 0:02:41.9]} 18... axb5 {[%clk 0:02:00.5]} 19. Qc2 {[%clk 0:02:41.2]}
19... Rfc8 {[%clk 0:01:49.8]} 20. Rad1 {[%clk 0:02:33.7]} 20... b4 {[%clk
0:01:45.6]} 21. g3 {[%clk 0:02:24.6]} 21... Rb6 {[%clk 0:01:29]} 22. c4 {[%clk
0:02:22.1]} 22... Nde7 {[%clk 0:01:27.7]} 23. Ra1 {[%clk 0:02:12.6]} 23... Nf5
{[%clk 0:01:23.7]} 24. Bg2 {[%clk 0:02:11.1]} 24... Rd8 {[%clk 0:01:19]} 25. g4
{[%clk 0:01:58.4]} 25... Nfe7 {[%clk 0:01:07.5]} 26. Be3 {[%clk 0:01:56]} 26...
Nd4 {[%clk 0:01:03]} 27. Nxd4 {[%clk 0:01:50.4]} 27... Bxd4 {[%clk 0:01:03.9]}
28. Qa4 {[%clk 0:01:45]} 28... Qxa4 {[%clk 0:00:51.5]} 29. Rxa4 {[%clk
0:01:45.9]} 29... Bxe3 {[%clk 0:00:51.9]} 30. Rxe3 {[%clk 0:01:45.1]} 30... Ng6
{[%clk 0:00:35.4]} 31. Ra5 {[%clk 0:01:40.2]} 31... Rc8 {[%clk 0:00:34.7]} 32.
Ra7 {[%clk 0:01:32.1]} 32... Nf4 {[%clk 0:00:29]} 33. Be4 {[%clk 0:01:20.6]}
33... g6 {[%clk 0:00:22.5]} 34. Rf3 {[%clk 0:01:19.3]} 34... e5 {[%clk
0:00:22.4]} 35. g5 {[%clk 0:01:14.4]} 35... Kf8 {[%clk 0:00:20.2]} 36. Bd5
{[%clk 0:01:11.3]} 36... f6 {[%clk 0:00:10.3]} 37. Rxh7 {[%clk 0:01:05.5]} 37...
fxg5 {[%clk 0:00:09.6]} 38. Rh8+ {[%clk 0:01:05.4]} 1-0

[Event "Early-Titled-Tuesday-Blitz-May-28-2024"]
[Site "Chess.com"]
[Date "2024.05.28"]
[Round "8"]
[White "TomLiu777"]
[Black "Shuvalov"]
[Result "1-0"]
[WhiteElo "2406"]
[BlackElo "2570"]
[TimeControl "180+1"]
[EndTime "9:29:22 PDT"]
[Termination "TomLiu777 won by resignation"]

1. d4 {[%clk 0:03:00.9]} 1... Nf6 {[%clk 0:02:56.4]} 2. c4 {[%clk 0:02:59.4]}
2... g6 {[%clk 0:02:56]} 3. h4 {[%clk 0:02:58.2]} 3... Bg7 {[%clk 0:02:52.4]} 4.
Nc3 {[%clk 0:02:56]} 4... Nc6 {[%clk 0:02:49.8]} 5. e4 {[%clk 0:02:55.9]} 5...
e5 {[%clk 0:02:47.7]} 6. d5 {[%clk 0:02:53.8]} 6... Nd4 {[%clk 0:02:44.6]} 7.
Nf3 {[%clk 0:02:45.5]} 7... Nxf3+ {[%clk 0:02:30.3]} 8. Qxf3 {[%clk 0:02:46.4]}
8... d6 {[%clk 0:02:28.4]} 9. Be2 {[%clk 0:02:44.8]} 9... h6 {[%clk 0:02:15.1]}
10. Qg3 {[%clk 0:02:40.5]} 10... O-O {[%clk 0:02:06.8]} 11. h5 {[%clk
0:02:38.1]} 11... Kh7 {[%clk 0:01:42.2]} 12. hxg6+ {[%clk 0:02:10.3]} 12... fxg6
{[%clk 0:01:43.1]} 13. Bg5 {[%clk 0:02:07]} 13... Qd7 {[%clk 0:01:30.7]} 14.
O-O-O {[%clk 0:02:02.7]} 14... a6 {[%clk 0:01:21.2]} 15. Qe3 {[%clk 0:01:23.3]}
15... Ng8 {[%clk 0:01:19.2]} 16. Rh2 {[%clk 0:01:18.2]} 16... b5 {[%clk
0:00:50.1]} 17. Rdh1 {[%clk 0:01:15.5]} 17... Rf4 {[%clk 0:00:40.4]} 18. g3
{[%clk 0:01:09.4]} 18... b4 {[%clk 0:00:39.7]} 19. gxf4 {[%clk 0:01:03.6]} 19...
exf4 {[%clk 0:00:32.8]} 20. Bxf4 {[%clk 0:00:59.5]} 20... bxc3 {[%clk
0:00:32.5]} 21. Bxh6 {[%clk 0:00:57.3]} 21... cxb2+ {[%clk 0:00:29.2]} 22. Kb1
{[%clk 0:00:57.5]} 22... Nxh6 {[%clk 0:00:26.9]} 23. Rxh6+ {[%clk 0:00:58.4]}
23... Kg8 {[%clk 0:00:26.6]} 24. Rxg6 {[%clk 0:00:50.8]} 24... Qf7 {[%clk
0:00:25]} 25. Qh6 {[%clk 0:00:46.2]} 25... Kf8 {[%clk 0:00:20.6]} 26. Qg5 {[%clk
0:00:36.8]} 26... Rb8 {[%clk 0:00:10.8]} 27. Qd8+ {[%clk 0:00:34.3]} 27... Qe8
{[%clk 0:00:09.7]} 28. Qxe8+ {[%clk 0:00:33.2]} 28... Kxe8 {[%clk 0:00:10.6]}
29. Rxg7 {[%clk 0:00:33.1]} 1-0